bitfinex/quotes_BTCUSD_20260311
["timestamp","ask_amount","ask_price","bid_price","bid_amount"]
[1773255507017,0.00166001,70667.0,70649.0,0.07108358]
[1773255507018,0.0281312,70666.0,70649.0,0.07108358]
[1773255507393,0.0281312,70666.0,70650.0,0.04206285]
[1773255507793,0.00166001,70667.0,70651.0,0.0894532]
[1773255508395,0.07241468,70667.0,70653.0,0.001]
[1773255508592,0.00166001,70667.0,70653.0,0.001]
[1773255508903,0.00166001,70667.0,70652.0,0.0707694]
[1773255509111,0.00266001,70667.0,70652.0,0.0707694]
[1773255509313,0.00022001,70667.0,70652.0,0.0707694]
[1773255509521,0.0709667,70675.0,70652.0,0.0707694]
[1773255509522,0.0142791,70682.0,70657.0,0.04206285]
[1773255509729,0.07218243,70679.0,70658.0,0.00144]
[1773255510127,0.07074347,70678.0,70658.0,0.00144]
[1773255510461,0.01405909,70676.0,70659.0,0.07076239]
[1773255511201,0.01405909,70676.0,70660.0,0.04206285]
[1773255511920,0.00166001,70677.0,70660.0,0.04206285]
[1773255512258,0.00022001,70677.0,70660.0,0.04206285]
[1773255512405,0.00022001,70677.0,70661.0,0.07076039]
[1773255512804,0.00022001,70677.0,70632.0,0.08177798]
[1773255512805,0.04206285,70671.0,70650.0,0.0707714]
[1773255513003,0.01911367,70670.0,70660.0,0.001]
[1773255513208,0.01911367,70670.0,70660.0,0.002]
[1773255513408,0.01911367,70670.0,70660.0,0.001]
[1773255513748,0.02055367,70669.0,70650.0,0.11283425]
[1773255514350,0.01911367,70669.0,70650.0,0.11283425]
[1773255514576,0.00144,70674.0,70659.0,0.04206285]
[1773255514762,0.00144,70674.0,70651.0,0.0894532]
[1773255515119,0.01911367,70673.0,70651.0,0.0894532]
[1773255515541,0.07096498,70677.0,70660.0,0.04206285]
[1773255515739,0.07096454,70677.0,70661.0,0.00144]
[1773255515906,0.002,70670.0,70662.0,0.00144]
[1773255516109,0.07096454,70677.0,70663.0,0.00144]
[1773255516311,0.00022001,70677.0,70663.0,0.00144]
[1773255516570,0.08986004,70675.0,70664.0,0.07075738]
[1773255516726,0.01911367,70675.0,70664.0,0.07075738]
[1773255517837,0.00022001,70677.0,70664.0,0.07075738]
[1773255518028,0.07096471,70677.0,70664.0,0.07075738]
[1773255518227,0.00022001,70677.0,70664.0,0.07075738]
[1773255518472,0.07074408,70678.0,70664.0,0.07075738]
[1773255519000,0.07090178,70680.0,70664.0,0.07075738]
[1773255519841,0.01911367,70679.0,70664.0,0.07075738]
[1773255522251,0.08985704,70678.0,70664.0,0.07075738]
[1773255522483,0.01911367,70677.0,70664.0,0.07075738]
[1773255524053,0.02011367,70677.0,70664.0,0.07075738]
[1773255524229,0.07174507,70677.0,70664.0,0.07075738]
[1773255524457,0.01911367,70676.0,70664.0,0.07075738]
[1773255525624,0.07096337,70679.0,70664.0,0.07075738]
[1773255525824,0.01911367,70678.0,70664.0,0.07075738]
[1773255526145,0.01911367,70676.0,70664.0,0.07075738]
[1773255526977,0.01911367,70675.0,70663.0,0.00144]
[1773255528898,0.07074737,70674.0,70664.0,0.07075738]
[1773255529060,0.07074737,70674.0,70653.0,0.07076831]
[1773255529061,0.01911367,70673.0,70653.0,0.07076831]
[1773255529264,0.01911367,70673.0,70654.0,0.00144]
[1773255530666,0.02055367,70673.0,70654.0,0.00144]
[1773255530868,0.02055367,70673.0,70655.0,0.0002]
[1773255531049,0.02055367,70673.0,70656.0,0.07076539]
[1773255531406,0.00144,70674.0,70656.0,0.07076539]
[1773255531594,0.01911367,70673.0,70656.0,0.07076539]
[1773255532889,0.02011367,70673.0,70656.0,0.07076539]
[1773255533317,0.001,70673.0,70656.0,0.07076539]
[1773255533510,0.00144,70676.0,70656.0,0.07076539]
[1773255533877,0.02055367,70676.0,70656.0,0.07076539]
[1773255534675,0.00144,70676.0,70656.0,0.07076539]
[1773255535730,0.00144,70676.0,70660.0,0.04205895]
[1773255535936,0.00144,70676.0,70661.0,0.00144]
[1773255537657,0.00144,70676.0,70662.0,0.07075938]
[1773255537859,0.02055367,70676.0,70662.0,0.07075938]
[1773255538155,0.01911367,70675.0,70662.0,0.07075938]
[1773255539737,0.07074737,70674.0,70662.0,0.07075938]
[1773255539943,0.01911367,70673.0,70662.0,0.07075938]
[1773255540642,0.00144,70676.0,70662.0,0.07075938]
[1773255540842,0.00144,70676.0,70663.0,0.04038924]
[1773255541870,0.00022001,70683.0,70667.0,0.04038924]
[1773255542170,0.00022001,70685.0,70669.0,0.04038924]
[1773255542171,0.07095643,70685.0,70669.0,0.04038924]
[1773255542432,0.001,70674.0,70669.0,0.04038924]
[1773255542628,0.00144,70682.0,70670.0,0.00144]
[1773255543211,0.00144,70682.0,70664.0,0.07075738]
[1773255543409,0.00144,70682.0,70665.0,0.00144]
[1773255543786,0.07074036,70681.0,70665.0,0.00144]
[1773255545464,0.00022001,70685.0,70670.0,0.04205895]
[1773255545733,0.07095713,70685.0,70671.0,0.04038705]
[1773255546037,0.07095713,70685.0,70672.0,0.07074937]
[1773255546254,0.07095713,70685.0,70650.0,0.0707714]
[1773255546255,0.04205895,70682.0,70650.0,0.0707714]
[1773255546423,0.04205895,70682.0,70652.0,0.04038705]
[1773255546742,0.07111673,70685.0,70651.0,0.08741096]
[1773255546743,0.07111673,70685.0,70661.0,0.04039219]
[1773255546954,0.00244,70681.0,70661.0,0.04039219]
[1773255547600,0.00018008,70679.0,70661.0,0.04039219]
[1773255547749,0.00125998,70680.0,70661.0,0.04039219]
[1773255547956,0.07074237,70679.0,70662.0,0.07075938]
[1773255548328,0.07074237,70679.0,70663.0,0.04039219]
[1773255549360,0.07174237,70679.0,70663.0,0.04039219]
[1773255549532,0.07074237,70679.0,70663.0,0.04039219]
[1773255550022,0.07174237,70679.0,70649.0,0.07113168]
[1773255550224,0.04205895,70673.0,70649.0,0.0003596]
[1773255550416,0.00144,70672.0,70649.0,0.0003596]
[1773255550664,0.00144,70672.0,70641.0,0.04219651]
[1773255550665,0.04205895,70670.0,70641.0,0.04219651]
[1773255550866,0.04205895,70670.0,70643.0,0.0820183]
[1773255552045,0.07075238,70669.0,70643.0,0.0820183]
[1773255553479,0.07175238,70669.0,70643.0,0.0820183]
[1773255553689,0.07275238,70669.0,70643.0,0.0820183]
[1773255555087,0.07175238,70669.0,70643.0,0.0822183]
[1773255555555,0.07075238,70669.0,70643.0,0.0822183]
[1773255555942,0.07175238,70669.0,70643.0,0.0822183]
[1773255556153,0.07075238,70669.0,70643.0,0.0822183]
[1773255556313,0.07175238,70669.0,70643.0,0.0822183]
[1773255556511,0.07275238,70669.0,70644.0,0.04040001]
[1773255556728,0.07175238,70669.0,70644.0,0.04040001]
[1773255557134,0.07275238,70669.0,70644.0,0.04040001]
[1773255557315,0.04205895,70660.0,70636.0,0.07100278]
[1773255557514,0.00144,70659.0,70636.0,0.07100278]
[1773255557939,0.00144,70659.0,70636.0,0.0002179]
[1773255558527,0.00153463,70659.0,70636.0,0.0002179]
[1773255558760,0.07076339,70658.0,70636.0,0.0002179]
[1773255558929,0.07076339,70658.0,70636.0,0.07100313]
[1773255559827,0.07176339,70658.0,70636.0,0.07100313]
[1773255560061,0.07076339,70658.0,70636.0,0.07100313]
[1773255560476,0.07176339,70658.0,70636.0,0.07100313]
[1773255561905,0.07176339,70658.0,70636.0,0.0002179]
[1773255562480,0.07176339,70658.0,70636.0,0.0004179]
[1773255562789,0.07276339,70658.0,70636.0,0.0004179]
[1773255562957,0.07276339,70658.0,70636.0,0.07120325]
[1773255563154,0.07276339,70658.0,70636.0,0.11160762]
[1773255563355,0.07176339,70658.0,70636.0,0.11160762]
[1773255563777,0.07176339,70658.0,70636.0,0.04082227]
[1773255564184,0.07176339,70658.0,70641.0,0.00014156]
[1773255564526,0.00144,70657.0,70642.0,0.04040437]
[1773255564730,0.00144,70656.0,70642.0,0.04040437]
[1773255565064,0.0707664,70655.0,70643.0,0.04040434]
[1773255567422,0.0707664,70655.0,70644.0,0.04039961]
[1773255570667,0.0707664,70655.0,70641.0,0.07222016]
[1773255570668,0.0717664,70655.0,70641.0,0.00144]
[1773255571430,0.0707664,70655.0,70641.0,0.00144]
[1773255571840,0.0707664,70655.0,70628.0,0.0711131]
[1773255572037,0.04205895,70651.0,70628.0,0.00032]
[1773255572235,0.04205895,70651.0,70628.0,0.00176]
[1773255572579,0.04205895,70651.0,70628.0,0.11295291]
[1773255572814,0.00144,70650.0,70628.0,0.11295291]
[1773255573371,0.07077241,70649.0,70628.0,0.07255328]
[1773255573574,0.07077241,70649.0,70628.0,0.11296186]
[1773255573782,0.07077241,70649.0,70628.0,0.07255328]
[1773255573993,0.07077241,70649.0,70630.0,0.04205895]
[1773255574196,0.07077241,70649.0,70631.0,0.04040858]
[1773255574739,0.07177241,70649.0,70631.0,0.04040858]
[1773255575672,0.07177241,70649.0,70633.0,0.04040511]
[1773255575869,0.07077241,70649.0,70633.0,0.04040511]
[1773255577464,0.07177241,70649.0,70633.0,0.04040511]
[1773255577714,0.07077241,70649.0,70633.0,0.07078789]
[1773255577893,0.00144,70648.0,70634.0,0.04040511]
[1773255580319,0.07077441,70647.0,70634.0,0.07078671]
[1773255580509,0.07077441,70647.0,70635.0,0.04040512]
[1773255582954,0.07177441,70647.0,70635.0,0.04040512]
[1773255583472,0.07077441,70647.0,70635.0,0.04040512]
[1773255583784,0.07177441,70647.0,70635.0,0.04040512]
[1773255584467,0.07277441,70647.0,70635.0,0.04040512]
[1773255585293,0.00022001,70658.0,70638.0,0.04040512]
[1773255585590,0.07076439,70657.0,70638.0,0.04040512]
[1773255586727,0.07076439,70657.0,70640.0,0.04040512]
[1773255587889,0.07076439,70657.0,70642.0,0.04039981]
[1773255589261,0.07076439,70657.0,70644.0,0.04039981]
[1773255591204,0.07076439,70657.0,70644.0,0.07077662]
[1773255591409,0.07076439,70657.0,70645.0,0.0403998]
[1773255593324,0.07076439,70657.0,70645.0,0.11117618]
[1773255593523,0.0709844,70657.0,70646.0,0.04039981]
[1773255594146,0.00022001,70658.0,70646.0,0.04039981]
[1773255594365,0.07098346,70658.0,70646.0,0.04039981]
[1773255595063,0.07098346,70658.0,70647.0,0.00144]
[1773255596048,0.07098346,70658.0,70647.0,0.07077441]
[1773255596256,0.07098346,70658.0,70647.0,0.07221441]
[1773255596850,0.07098346,70658.0,70647.0,0.11261202]
[1773255597057,0.07098346,70658.0,70648.0,0.04039761]
[1773255598073,0.07098346,70658.0,70647.0,0.00144]
[1773255598580,0.07098346,70658.0,70645.0,0.04039761]
[1773255598754,0.07098346,70658.0,70645.0,0.00144]
[1773255599618,0.07242346,70658.0,70645.0,0.00144]
[1773255600201,0.07242346,70658.0,70645.0,0.04183807]
[1773255600394,0.07242346,70658.0,70645.0,0.11261439]
[1773255600801,0.07242346,70658.0,70645.0,0.04183807]
[1773255602140,0.07242346,70658.0,70641.0,0.0002]
[1773255602729,0.07242346,70658.0,70642.0,0.04040336]
[1773255602928,0.07098346,70658.0,70642.0,0.04040336]
[1773255603342,0.07198346,70658.0,70642.0,0.04040336]
[1773255604146,0.07198346,70658.0,70643.0,0.07077842]
[1773255604367,0.07198346,70658.0,70644.0,0.04184336]
[1773255604863,0.07198346,70658.0,70644.0,0.00144]
[1773255604864,0.07098346,70658.0,70644.0,0.00144]
[1773255605381,0.07098346,70658.0,70641.0,0.00144]
[1773255605938,0.07098346,70658.0,70639.0,0.00144]
[1773255606126,0.07198346,70658.0,70639.0,0.00144]
[1773255606708,0.07098346,70658.0,70639.0,0.07222228]
[1773255606979,0.07098346,70658.0,70639.0,0.00144]
[1773255607482,0.07098346,70658.0,70640.0,0.04040307]
[1773255607986,0.07098346,70658.0,70641.0,0.04040307]
[1773255607987,0.07298346,70658.0,70641.0,0.04040307]
[1773255608147,0.07198346,70658.0,70641.0,0.04040307]
[1773255608539,0.07298346,70658.0,70643.0,0.04040307]
[1773255608747,0.07176345,70658.0,70643.0,0.04040307]
[1773255609749,0.07076345,70658.0,70643.0,0.04140307]
[1773255609940,0.07076339,70660.0,70643.0,0.04140307]
[1773255610147,0.07075413,70668.0,70651.0,0.04039846]
[1773255610399,0.07097711,70665.0,70651.0,0.04039846]
[1773255610893,0.07097711,70665.0,70653.0,0.04039375]
[1773255611588,0.00022001,70658.0,70653.0,0.04039375]
[1773255611801,0.00022001,70665.0,70653.0,0.04039375]
[1773255612007,0.07097646,70665.0,70653.0,0.04039375]
[1773255613294,0.07097646,70665.0,70654.0,0.0722074]
[1773255613489,0.07097646,70665.0,70653.0,0.04039375]
[1773255613712,0.07097646,70665.0,70654.0,0.00144]
[1773255615206,0.07097646,70665.0,70655.0,0.00144]
[1773255615608,0.07097646,70665.0,70655.0,0.04029697]
[1773255616040,0.07097583,70666.0,70655.0,0.04029697]
[1773255616238,0.00022001,70666.0,70655.0,0.03885697]
[1773255616392,0.07097473,70667.0,70655.0,0.03885697]
[1773255617405,0.07097473,70667.0,70656.0,0.10962236]
[1773255617821,0.07097473,70667.0,70656.0,0.03885697]
[1773255618492,0.07097473,70667.0,70657.0,0.00144]
[1773255619073,0.07097473,70667.0,70655.0,0.07076631]
[1773255619074,0.07097473,70667.0,70655.0,0.04029697]
[1773255619220,0.07097473,70667.0,70655.0,0.03885697]
[1773255619420,0.07241473,70667.0,70655.0,0.03885697]
[1773255619919,0.07097473,70667.0,70645.0,0.01942849]
[1773255620125,0.00144,70666.0,70642.0,0.00144]
[1773255620332,0.00144,70666.0,70644.0,0.00971424]
[1773255621569,0.07075638,70665.0,70645.0,0.07077641]
[1773255621776,0.07075638,70665.0,70646.0,0.00971424]
[1773255623018,0.04459234,70664.0,70645.0,0.07077641]
[1773255623877,0.04209893,70660.0,70643.0,0.00011133]
[1773255624096,0.07075838,70663.0,70634.0,1e-08]
[1773255624097,0.04459234,70654.0,70634.0,1e-08]
[1773255624312,0.0881761,70649.0,70634.0,0.00037178]
[1773255624522,0.04603234,70648.0,70627.0,0.0002]
[1773255624732,0.04640413,70648.0,70627.0,0.0002]
[1773255625153,0.04640413,70648.0,70626.0,1e-08]
[1773255625154,0.04598687,70639.0,70626.0,1e-08]
[1773255625546,0.00144,70638.0,70626.0,1e-08]
[1773255625787,0.04598687,70637.0,70626.0,1e-08]
[1773255625992,0.04598687,70635.0,70626.0,1e-08]
[1773255626838,0.04598687,70635.0,70621.0,0.00144]
[1773255627048,0.04598687,70635.0,70614.0,0.07080704]
[1773255627262,0.04598687,70635.0,70618.0,0.00144]
[1773255627527,0.04598687,70635.0,70614.0,0.00014161]
[1773255627734,0.07078543,70636.0,70589.0,0.02969441]
[1773255627735,0.07078543,70636.0,70595.0,0.0002612]
[1773255627736,0.0482564,70629.0,70595.0,0.0002612]
[1773255627962,0.0482564,70626.0,70596.0,0.07082554]
[1773255629213,0.0482564,70626.0,70596.0,0.07092017]
[1773255630095,0.0482564,70624.0,70596.0,0.07092017]
[1773255630573,0.0482564,70622.0,70596.0,0.07092017]
[1773255630934,0.00144,70621.0,70596.0,0.07092017]
[1773255631139,0.0482564,70620.0,70596.0,0.07092017]
[1773255631760,0.05879746,70622.0,70596.0,0.07092017]
[1773255631976,0.01785074,70622.0,70596.0,0.07092017]
[1773255632184,0.02903797,70635.0,70600.0,0.12635756]
[1773255632409,0.02903797,70635.0,70610.0,0.12635756]
[1773255632541,0.02903797,70635.0,70611.0,0.00144]
[1773255634133,0.02903797,70635.0,70612.0,0.07080949]
[1773255634536,0.09982449,70635.0,70612.0,0.07080949]
[1773255635214,0.02903797,70635.0,70612.0,0.07180949]
[1773255635359,0.02903797,70635.0,70612.0,0.07280949]
[1773255635552,0.02903797,70635.0,70612.0,0.07180949]
[1773255635750,0.09982448,70635.0,70612.0,0.07180949]
[1773255635991,0.09982448,70635.0,70612.0,0.07280949]
[1773255636301,0.02903797,70635.0,70612.0,0.07180949]
[1773255636495,0.02903797,70635.0,70612.0,0.07080949]
[1773255636647,0.02903797,70635.0,70612.0,0.07180949]
[1773255636877,0.09982455,70635.0,70612.0,0.07280949]
[1773255637302,0.02903797,70635.0,70612.0,0.07280949]
[1773255637497,0.09982474,70635.0,70612.0,0.07280949]
[1773255637719,0.0482564,70634.0,70612.0,0.07280949]
[1773255637923,0.0482564,70634.0,70612.0,0.07080949]
[1773255638135,0.0482564,70634.0,70612.0,0.07280949]
[1773255638479,0.119044,70634.0,70612.0,0.07180949]
[1773255638693,0.119044,70634.0,70626.0,0.00014159]
[1773255639851,0.119044,70634.0,70626.0,0.00023622]
[1773255641413,0.0482564,70634.0,70626.0,0.00023622]
[1773255642234,0.11904423,70634.0,70626.0,0.00023622]
[1773255642838,0.07078783,70634.0,70626.0,0.00023622]
[1773255643187,0.09982464,70635.0,70626.0,0.00023622]
[1773255643693,0.14830105,70635.0,70626.0,0.00023622]
[1773255643939,0.10004465,70635.0,70626.0,0.00023622]
[1773255644135,0.02925798,70635.0,70626.0,0.00023622]
[1773255644573,0.02925798,70635.0,70626.0,9.463e-05]
[1773255647488,0.00022001,70643.0,70626.0,9.463e-05]
[1773255647489,0.01249766,70657.0,70630.0,0.12632766]
[1773255647646,0.01249766,70657.0,70640.0,0.12632766]
[1773255647844,0.01249766,70657.0,70641.0,0.00144]
[1773255648083,0.01249766,70657.0,70642.0,0.00144]
[1773255648250,0.01249766,70657.0,70643.0,0.07077842]
[1773255649072,0.0002564,70659.0,70643.0,0.07077842]
[1773255649481,0.0002564,70659.0,70643.0,0.07277842]
[1773255649883,0.0002564,70659.0,70643.0,0.07077842]
[1773255651089,0.0002564,70659.0,70643.0,0.07277842]
[1773255651289,0.0002564,70659.0,70643.0,0.07077842]
[1773255651659,0.0002564,70659.0,70643.0,0.07277842]
[1773255651859,0.0002564,70659.0,70643.0,0.07177842]
[1773255652362,0.0002564,70659.0,70643.0,0.07277842]
[1773255652657,0.0243846,70659.0,70643.0,0.07177842]
[1773255652876,0.0243846,70659.0,70643.0,0.07377842]
[1773255653277,0.0243846,70659.0,70643.0,0.07277842]
[1773255653846,0.0243846,70659.0,70643.0,0.07377842]
[1773255654171,0.0002564,70659.0,70643.0,0.07177842]
[1773255654878,0.0002564,70659.0,70643.0,0.07077842]
[1773255655116,0.0002564,70659.0,70643.0,0.07277842]
[1773255655280,0.0002564,70659.0,70643.0,0.07177842]
[1773255655781,0.0002564,70659.0,70643.0,0.07377842]
[1773255655982,0.0002564,70659.0,70643.0,0.07177842]
[1773255656403,0.0241282,70658.0,70643.0,0.07177842]
[1773255656606,0.0241282,70658.0,70643.0,0.07077842]
[1773255656805,0.0241282,70658.0,70643.0,0.07177842]
[1773255657631,0.0241282,70658.0,70644.0,0.00144]
[1773255658568,0.0241282,70658.0,70645.0,0.07077641]
[1773255659091,0.0241282,70657.0,70633.0,0.07078808]
[1773255659229,0.0241282,70657.0,70634.0,0.07098695]
[1773255659854,0.00144,70656.0,70634.0,0.07098695]
[1773255660052,0.0241282,70655.0,70635.0,0.00144]
[1773255660421,0.00144,70654.0,70635.0,0.00144]
[1773255660776,0.0707684,70653.0,70645.0,0.001]
[1773255660920,0.0963366,70653.0,70636.0,0.07078543]
[1773255661324,0.0948966,70653.0,70636.0,0.07078543]
[1773255663381,0.0712398,70659.0,70636.0,0.07078543]
[1773255663965,0.095368,70659.0,70636.0,0.07178543]
[1773255664281,0.0241282,70664.0,70640.0,0.12632766]
[1773255664484,0.0241282,70664.0,70636.0,0.07078543]
[1773255664688,0.0241282,70664.0,70637.0,0.00144]
[1773255664895,0.0241282,70664.0,70638.0,0.00144]
[1773255665316,0.0241282,70662.0,70639.0,0.07078242]
[1773255665546,0.0255682,70662.0,70639.0,0.07078242]
[1773255665863,0.0255682,70662.0,70640.0,0.00144]
[1773255667048,0.00022001,70657.0,70640.0,0.00144]
[1773255667644,0.00022001,70657.0,70641.0,0.07078042]
[1773255668514,0.0241282,70656.0,70641.0,0.07078042]
[1773255669032,0.00022001,70657.0,70641.0,0.07078042]
[1773255669662,0.00022001,70657.0,70641.0,0.07178042]
[1773255669966,0.00022001,70657.0,70641.0,0.07278042]
[1773255670165,0.00022001,70657.0,70641.0,0.07178042]
[1773255670544,0.00022001,70657.0,70641.0,0.07278042]
[1773255672753,0.00022001,70657.0,70641.0,0.07178042]
[1773255673176,0.00022001,70657.0,70641.0,0.07278042]
[1773255673370,0.00022001,70657.0,70641.0,0.07178042]
[1773255673552,0.00022001,70657.0,70641.0,0.07078042]
[1773255673742,0.00022001,70657.0,70641.0,0.07178042]
[1773255674376,0.02434821,70657.0,70641.0,0.07178042]
[1773255674939,0.0241282,70656.0,70641.0,0.07178042]
[1773255675671,0.0241282,70656.0,70641.0,0.07278042]
[1773255676224,0.0241282,70656.0,70641.0,0.07078042]
[1773255676368,0.0241282,70656.0,70641.0,0.07178042]
[1773255676573,0.0241282,70656.0,70641.0,0.07078042]
[1773255677021,0.0241282,70655.0,70632.0,0.211611]
[1773255677223,0.0241282,70655.0,70636.0,4.97e-05]
[1773255677739,0.0241282,70655.0,70641.0,0.002]
[1773255677945,0.0241282,70655.0,70641.0,0.001]
[1773255678570,0.0241282,70653.0,70641.0,0.001]
[1773255679347,0.0241282,70653.0,70638.0,0.07078299]
[1773255679806,0.0241282,70653.0,70637.0,0.07078242]
[1773255680439,0.0241282,70653.0,70636.0,0.07227469]
[1773255680610,0.0241282,70651.0,70636.0,0.07227469]
[1773255680822,0.0255682,70651.0,70636.0,0.00144]
[1773255681043,0.0255682,70651.0,70634.0,0.0002]
[1773255681873,0.0255682,70651.0,70634.0,0.07098739]
[1773255682059,0.0255682,70651.0,70634.0,0.0002]
[1773255683119,0.0241282,70649.0,70634.0,0.0002]
[1773255685182,0.0241282,70647.0,70634.0,0.07098743]
[1773255685688,0.0241282,70647.0,70634.0,0.0002]
[1773255687175,0.07077541,70646.0,70634.0,0.0002]
[1773255687491,0.0241282,70645.0,70634.0,0.0002]
[1773255688284,0.0255682,70645.0,70634.0,0.0002]
[1773255689455,0.09490561,70644.0,70634.0,0.0002]
[1773255690208,0.0002564,70716.0,70634.0,0.0002]
[1773255690209,0.0707674,70654.0,70634.0,0.07098683]
[1773255690407,0.00144,70650.0,70634.0,0.07098683]
[1773255690608,0.00144,70650.0,70634.0,0.0002]
[1773255690609,0.0241282,70649.0,70634.0,0.0002]
[1773255690828,0.0255682,70649.0,70634.0,0.07098743]
[1773255691384,0.07077341,70648.0,70634.0,0.07098743]
[1773255691590,0.0241282,70647.0,70634.0,0.07098743]
[1773255692745,0.01448902,70658.0,70637.0,0.04207372]
[1773255693099,0.07219954,70662.0,70640.0,0.04207372]
[1773255693366,0.01470903,70657.0,70641.0,0.07078042]
[1773255694946,0.07098472,70657.0,70641.0,0.07078042]
[1773255695122,0.01448902,70656.0,70641.0,0.07078042]
[1773255696547,0.0707659,70656.0,70640.0,0.07078042]
[1773255696708,0.01448902,70655.0,70640.0,0.07078042]
[1773255697297,0.01448902,70655.0,70640.0,0.11285414]
[1773255697689,0.00022001,70659.0,70645.0,0.04207644]
[1773255697828,0.00022001,70659.0,70646.0,0.00144]
[1773255698300,0.07097701,70665.0,70646.0,0.00144]
[1773255698463,0.07097842,70663.0,70650.0,0.04207644]
[1773255698676,0.00022001,70663.0,70650.0,0.04207644]
[1773255699483,0.00022001,70663.0,70651.0,0.0707704]
[1773255699687,0.00022001,70663.0,70652.0,0.00144]
[1773255699688,0.00059203,70663.0,70652.0,0.00144]
[1773255700770,0.00022001,70657.0,70652.0,0.00144]
[1773255701659,0.00022001,70657.0,70653.0,0.0707684]
[1773255702571,0.00022001,70657.0,70652.0,0.00144]
[1773255702803,0.00022001,70657.0,70652.0,0.07220928]
[1773255703004,0.00022001,70657.0,70653.0,0.001]
[1773255703462,0.00022001,70657.0,70652.0,0.07220928]
[1773255703632,0.00022001,70657.0,70653.0,0.07276751]
[1773255703831,0.00022001,70657.0,70653.0,0.07176751]
[1773255704334,0.01448902,70656.0,70641.0,0.07078042]
[1773255704482,0.01448902,70656.0,70640.0,0.0002]
[1773255704695,0.01448902,70656.0,70641.0,0.00144]
[1773255705197,0.01448902,70656.0,70640.0,0.07098095]
[1773255705419,0.01448902,70656.0,70653.0,0.001]
[1773255705623,0.01448902,70656.0,70642.0,0.00144]
[1773255705799,0.01448902,70654.0,70653.0,0.001]
[1773255706000,0.01448902,70654.0,70642.0,0.00144]
[1773255706231,0.01448902,70654.0,70642.0,0.07221908]
[1773255706842,0.01448902,70654.0,70642.0,0.00144]
[1773255707051,0.01548902,70654.0,70642.0,0.00144]
[1773255707233,0.01448902,70654.0,70642.0,0.00144]
[1773255707839,0.01448902,70654.0,70640.0,0.0002]
[1773255707840,0.0707684,70653.0,70640.0,0.0002]
[1773255708006,0.01448902,70652.0,70640.0,0.0002]
[1773255708662,0.01448902,70650.0,70640.0,0.0002]
[1773255708875,0.01448902,70650.0,70641.0,0.0002]
[1773255710228,0.07077184,70650.0,70641.0,0.0002]
[1773255710431,0.07077184,70650.0,70347.0,0.00015]
[1773255710432,0.01448902,70649.0,70627.0,0.0002]
[1773255712713,0.07077341,70648.0,70627.0,0.0002]
[1773255712918,0.00144,70647.0,70630.0,0.04207644]
[1773255713121,0.0709854,70657.0,70638.0,0.04207644]
[1773255713122,0.00144,70653.0,70638.0,0.04207644]
[1773255713535,0.001,70649.0,70638.0,0.04207644]
[1773255713733,0.01592902,70655.0,70639.0,0.00144]
[1773255714492,0.001,70649.0,70639.0,0.00144]
[1773255715409,0.07177304,70649.0,70639.0,0.00144]
[1773255715614,0.01448902,70648.0,70639.0,0.00144]
[1773255716425,0.01448902,70648.0,70639.0,0.00244]
[1773255716631,0.01448902,70648.0,70639.0,0.00144]
[1773255717410,0.01448902,70648.0,70629.0,0.00144]
[1773255717411,0.01448902,70646.0,70629.0,0.00144]
[1773255717865,0.01448902,70646.0,70627.0,0.07099358]
[1773255718017,0.01448902,70646.0,70628.0,0.00144]
[1773255719752,0.07077641,70645.0,70628.0,0.00144]
[1773255719932,0.01448902,70644.0,70628.0,0.07223314]
[1773255720358,0.01448902,70644.0,70628.0,0.07223332]
[1773255720832,0.01448902,70644.0,70628.0,0.00144]
[1773255721034,0.01448902,70644.0,70619.0,0.0002]
[1773255722002,0.01448902,70642.0,70619.0,0.0002]
[1773255722288,0.01448902,70640.0,70619.0,0.0002]
[1773255722737,0.01448902,70640.0,70612.0,0.0002]
[1773255723011,0.01448902,70640.0,70607.0,0.07276296]
[1773255723153,0.1262915,70630.0,70592.0,0.00165937]
[1773255723358,0.01448902,70628.0,70592.0,0.07248838]
[1773255723936,0.07079445,70627.0,70592.0,0.07248838]
[1773255724141,0.01448902,70626.0,70592.0,0.07248838]
[1773255724475,0.01448902,70626.0,70592.0,0.00165937]
[1773255724701,0.01448902,70626.0,70592.0,0.07248889]
[1773255726185,0.01448902,70624.0,70592.0,0.07248889]
[1773255726387,0.07079646,70625.0,70586.0,0.01124]
[1773255726388,0.1262915,70620.0,70586.0,0.01124]
[1773255726556,0.01448902,70618.0,70586.0,0.01124]
[1773255727625,0.01448902,70616.0,70586.0,0.01124]
[1773255728131,0.01448902,70614.0,70586.0,0.01124]
[1773255728422,0.01448902,70614.0,70586.0,0.08207506]
[1773255728821,0.01448902,70614.0,70586.0,0.01124]
[1773255728983,0.01448902,70614.0,70586.0,0.0820749]
[1773255729528,0.01448902,70614.0,70586.0,0.01124]
[1773255729924,0.01448902,70614.0,70581.0,0.00144]
[1773255729925,0.01448902,70612.0,70576.0,0.07084542]
[1773255730160,0.01448902,70609.0,70575.0,0.07098825]
[1773255730362,0.01448902,70607.0,70575.0,0.07098825]
[1773255730699,0.01448902,70607.0,70578.0,0.0002]
[1773255731671,0.01448902,70607.0,70579.0,0.00033883]
[1773255732190,0.01441821,70605.0,70579.0,0.00033883]
[1773255732384,0.01441821,70603.0,70579.0,0.00033883]
[1773255732738,0.00144,70602.0,70579.0,0.00033883]
[1773255732939,0.01441821,70601.0,70579.0,0.00033883]
[1773255734263,0.01441821,70601.0,70575.0,0.00014169]
[1773255734264,0.01441821,70599.0,70575.0,0.00014169]
[1773255734444,0.01441821,70597.0,70575.0,0.00025342]
[1773255735449,0.01441821,70595.0,70571.0,0.0002]
[1773255735674,0.01441821,70595.0,70571.0,0.00031159]
[1773255736356,0.01441821,70593.0,70571.0,0.00031159]
[1773255736703,0.01441821,70591.0,70571.0,0.00031159]
[1773255737526,0.00144,70590.0,70571.0,0.00031159]
[1773255737678,0.01441821,70589.0,70571.0,0.00031159]
[1773255738013,0.01441821,70589.0,70575.0,0.0002]
[1773255738529,0.08525177,70588.0,70575.0,0.0002]
[1773255738729,0.05379631,70587.0,70574.0,0.00014169]
[1773255738958,0.01441821,70586.0,70574.0,0.00014169]
[1773255739978,0.05379631,70587.0,70574.0,0.00014169]
[1773255740179,0.0708145,70609.0,70574.0,0.0709891]
[1773255740523,0.47050893,70616.0,70575.0,0.00144]
[1773255740524,0.01441821,70607.0,70575.0,0.00144]
[1773255740725,0.01441821,70604.0,70576.0,0.07084561]
[1773255741003,0.07225643,70608.0,70576.0,0.07084561]
[1773255741004,0.07079013,70632.0,70580.0,0.1262915]
[1773255741208,0.06320086,70639.0,70580.0,0.1262915]
[1773255741209,0.07107581,70614.0,70580.0,0.1262915]
[1773255741422,0.01441821,70613.0,70576.0,0.07084561]
[1773255741565,0.01441821,70613.0,70577.0,0.00144]
[1773255741768,0.01441821,70613.0,70576.0,0.07084561]
[1773255741769,0.01441821,70613.0,70578.0,0.00144]
[1773255741972,0.01441821,70613.0,70579.0,0.00144]